bitfinex-derivatives/quotes_BTCF0:USTF0_20210105
["timestamp","ask_amount","ask_price","bid_price","bid_amount"]
[1609824089388,0.13632608,30954.0,30945.0,0.10234]
[1609824089589,0.13632608,30954.0,30936.0,0.22155]
[1609824089993,0.13632608,30954.0,30936.0,0.12465]
[1609824090191,0.13632608,30954.0,30927.0,0.15178]
[1609824090389,0.12651,30954.0,30947.0,0.13632608]
[1609824090590,3.9467,30951.0,30947.0,0.13632608]
[1609824090790,3.9467,30951.0,30934.0,0.10149]
[1609824091992,0.12651,30954.0,30912.0,0.0961]
[1609824092192,0.12651,30954.0,30919.0,4.9984]
[1609824092391,0.12651,30954.0,30953.0,0.13632608]
[1609824092592,0.12651,30954.0,30938.0,0.0978]
[1609824092792,0.12651,30954.0,30932.0,0.12186]
[1609824093592,0.13632608,30955.0,30932.0,0.12186]
[1609824093794,0.14512,30966.0,30933.0,0.7227]
[1609824093995,0.61961544,30976.0,30932.0,0.12186]
[1609824094193,0.61961544,30976.0,30935.0,4.5573]
[1609824094394,0.13632608,30965.0,30959.0,0.13632608]
[1609824095197,0.09717,30970.0,30959.0,0.13632608]
[1609824096297,0.62465335,30987.0,30959.0,0.13632608]
[1609824096600,0.13632608,30971.0,30965.0,0.13632608]
[1609824097399,0.0976,30970.0,30965.0,0.13632608]
[1609824097799,0.0968,30976.0,30965.0,0.13632608]
[1609824098199,0.0968,30976.0,30966.0,0.0969]
[1609824098400,0.13804,30979.0,30975.0,0.13632608]
[1609824098801,0.6249015,30992.0,30975.0,0.13632608]
[1609824099601,5.0322,30994.0,30975.0,0.13632608]
[1609824099802,5.0322,30994.0,30976.0,0.0954]
[1609824100003,0.62303924,30996.0,30976.0,0.0954]
[1609824100201,0.62303924,30996.0,30975.0,0.13632608]
[1609824100402,0.13632608,30982.0,30980.0,0.13632608]
[1609824101202,0.02646,30989.0,30980.0,0.13632608]
[1609824101805,0.62550044,30998.0,30981.0,0.0976]
[1609824102402,0.62550044,30998.0,30996.0,0.13632608]
[1609824102604,0.62734703,31007.0,30996.0,0.13632608]
[1609824103605,0.48402505,31012.0,30997.0,0.0969]
[1609824103804,0.62881419,31018.0,30997.0,0.0969]
[1609824104004,0.62881419,31018.0,30997.0,0.20298]
[1609824104504,0.13632608,31016.0,31013.0,0.13632608]
[1609824105305,0.13632608,31016.0,30998.0,0.0966]
[1609824106105,0.13632608,31016.0,30997.0,0.10608]
[1609824106306,5.0067,31013.0,30997.0,0.10608]
[1609824107107,5.11878,31013.0,30997.0,0.10608]
[1609824108007,5.11878,31013.0,31010.0,0.13632608]
[1609824108207,5.11878,31013.0,30997.0,0.10608]
[1609824108707,0.11208,31013.0,30997.0,0.10608]
[1609824109410,0.11208,31013.0,30990.0,5.09976]
[1609824110009,0.24840608,31013.0,31007.0,0.13632608]
[1609824110710,0.24840608,31013.0,30999.0,0.14723]
[1609824111110,3.8821,31012.0,30999.0,0.14723]
[1609824111309,3.8821,31012.0,30990.0,0.15866]
[1609824111509,3.8821,31012.0,30978.0,4.78672]
[1609824112111,3.8821,31012.0,31003.0,0.13632608]
[1609824112510,3.8821,31012.0,30991.0,0.12265]
[1609824114212,3.8821,31012.0,31011.0,0.13632608]
[1609824114413,0.11208,31013.0,30991.0,0.12265]
[1609824114716,4.4178,31019.0,30991.0,0.12265]
[1609824115313,0.2945,31022.0,30991.0,0.12265]
[1609824115520,0.2945,31022.0,30991.0,5.24065]
[1609824115715,0.12655,31025.0,30991.0,5.24065]
[1609824115920,0.48391774,31019.0,30991.0,5.24065]
[1609824116115,0.58980774,31019.0,31016.0,0.13632608]
[1609824116714,0.58980774,31019.0,30999.0,0.12835]
[1609824116915,0.10589,31019.0,30999.0,0.12835]
[1609824118016,0.14008,31026.0,30999.0,0.12835]
[1609824118216,0.14008,31026.0,31019.0,0.13632608]
[1609824119417,0.52304218,31036.0,31019.0,0.13632608]
[1609824119822,0.48353571,31043.0,31019.0,5.38132608]
[1609824120021,0.52504885,31047.0,31019.0,5.38132608]
[1609824120220,0.66137493,31047.0,31042.0,0.13632608]
[1609824120821,0.13632608,31047.0,31042.0,0.13632608]
[1609824122120,0.13632608,31043.0,31042.0,0.13632608]
[1609824122921,0.13632608,31043.0,31031.0,0.15726]
[1609824123320,0.12615,31049.0,31031.0,0.15726]
[1609824124122,0.13632608,31047.0,31031.0,0.15726]
[1609824124926,0.13632608,31047.0,31024.0,0.10803]
[1609824125423,4.8066,31048.0,31024.0,0.10803]
[1609824125823,4.8066,31048.0,31016.0,0.12636]
[1609824126024,4.8066,31048.0,31013.0,3.7362]
[1609824126223,4.8066,31048.0,31023.0,0.13632608]
[1609824126826,4.8066,31048.0,31021.0,0.15693]
[1609824128231,0.13632608,31038.0,31031.0,0.13632608]
[1609824129431,0.13151,31041.0,31031.0,0.13632608]
[1609824130233,0.13151,31041.0,31040.0,0.13632608]
[1609824130432,0.13151,31041.0,31028.0,0.14133]
[1609824130631,0.13632608,31048.0,31028.0,0.14133]
[1609824132233,0.13632608,31043.0,31041.0,0.13632608]
[1609824132737,0.13632608,31043.0,31028.0,0.14133]
[1609824133336,0.12615,31049.0,31028.0,0.14133]
[1609824133636,0.2736,31060.0,31028.0,0.14133]
[1609824134737,0.2736,31060.0,31023.0,4.9137]
[1609824134940,0.43189,31060.0,31023.0,4.9137]
[1609824135138,4.0076,31051.0,31021.0,0.15693]
[1609824135341,4.11987,31051.0,31009.0,4.03714]
[1609824136540,0.01777994,31046.0,31009.0,0.10334]
[1609824136739,4.7014,31039.0,31018.0,0.13632608]
[1609824137139,4.8473,31039.0,31018.0,0.13632608]
[1609824137943,4.8473,31039.0,30996.0,4.5455]
[1609824138142,4.8473,31039.0,30948.0,2.47281846]
[1609824138143,0.1459,31039.0,30948.0,2.47281846]
[1609824138342,0.1459,31039.0,30955.0,0.2777]
[1609824138543,4.2365,31025.0,30969.0,4.8662]
[1609824138744,0.287,31024.0,31006.0,0.13632608]
[1609824140842,0.13632608,31007.0,30993.0,4.834]
[1609824141041,0.13632608,31007.0,30973.0,7.4516]
[1609824141042,0.13632608,31007.0,30949.0,0.2878]
[1609824141242,0.13632608,31007.0,30968.0,3.9593]
[1609824141442,0.13632608,31007.0,30968.0,4.10133]
[1609824141943,0.13632608,31007.0,30968.0,4.19793]
[1609824142843,0.10439,31010.0,31000.0,0.13632608]
[1609824144746,0.13632608,31001.0,31000.0,0.13632608]
[1609824146152,0.13632608,31001.0,30990.0,0.1377]
[1609824146947,4.7465,31004.0,30990.0,0.1377]
[1609824147348,0.13632608,30991.0,30990.0,0.1377]
[1609824147755,0.13632608,30991.0,30973.0,5.3839]
[1609824149350,0.13532,31000.0,30984.0,0.13632608]
[1609824149549,0.13532,31000.0,30973.0,5.3839]
[1609824151052,0.4842615,30997.0,30973.0,5.3839]
[1609824151451,0.13632608,30984.0,30982.0,0.13632608]
[1609824155456,0.13632608,30984.0,30968.0,0.14203]
[1609824155657,0.13632608,30984.0,30955.0,3.8944]
[1609824157457,4.6866,30986.0,30975.0,0.13632608]
[1609824157657,4.6866,30986.0,30975.0,0.27951608]
[1609824158658,4.6866,30986.0,30975.0,0.14319]
[1609824159463,0.13632608,30976.0,30975.0,0.27951608]
[1609824160159,0.13632608,30976.0,30975.0,0.14319]
[1609824160760,0.7453,30976.0,30975.0,0.14319]
[1609824161361,0.88162608,30976.0,30975.0,0.14319]
[1609824161561,0.88162608,30976.0,30944.0,2.13226784]
[1609824161763,0.12436,30983.0,30944.0,2.13226784]
[1609824161964,4.2145,30948.0,30944.0,0.15223]
[1609824162160,0.14158,30952.0,30944.0,0.15223]
[1609824162361,5.15,30945.0,30944.0,0.15223]
[1609824162760,5.15,30945.0,30944.0,0.09803]
[1609824163166,5.15,30945.0,30934.0,0.11931]
[1609824163361,0.13632608,30935.0,30934.0,0.11931]
[1609824163562,0.26312608,30935.0,30913.0,5.339]
[1609824163761,4.7305,30932.0,30913.0,5.339]
[1609824164262,4.6331,30928.0,30906.0,2.13531229]
[1609824164465,4.76495,30928.0,30906.0,2.13531229]
[1609824165064,0.13185,30928.0,30906.0,2.13531229]
[1609824165466,0.13632608,30919.0,30912.0,0.13632608]
[1609824165666,0.13185,30928.0,30912.0,0.13632608]
[1609824167068,0.6439,30933.0,30912.0,0.13632608]
[1609824167466,0.13632608,30924.0,30922.0,0.13632608]
[1609824168269,0.13632608,30924.0,30908.0,0.10565]
[1609824169466,0.1268,30935.0,30920.0,0.13632608]
[1609824169668,4.37870319,30943.0,30920.0,0.13632608]
[1609824170067,0.48510319,30943.0,30919.0,0.13653]
[1609824170267,0.10206,30943.0,30919.0,0.13653]
[1609824171368,0.13632608,30941.0,30938.0,0.13632608]
[1609824171770,0.10206,30943.0,30938.0,0.13632608]
[1609824171970,0.10206,30943.0,30939.0,5.3064]
[1609824172172,0.01705002,30965.0,30939.0,5.3064]
[1609824172370,0.2805,30972.0,30939.0,5.3064]
[1609824173170,0.4849751,30951.0,30939.0,5.3064]
[1609824173372,0.4849751,30951.0,30950.0,0.13632608]
[1609824173972,3.9266,30959.0,30946.0,0.13481]
[1609824175375,0.13632608,30947.0,30935.0,0.13632608]
[1609824176174,0.13632608,30947.0,30933.0,0.1105]
[1609824177376,0.09695,30949.0,30939.0,0.13632608]
[1609824177777,0.09695,30949.0,30933.0,0.1105]
[1609824177976,0.09695,30949.0,30932.0,4.863]
[1609824179480,0.09695,30949.0,30936.0,0.13632608]
[1609824180380,3.78305,30949.0,30936.0,0.13632608]
[1609824181380,0.13632608,30937.0,30936.0,0.13632608]
[1609824181781,0.13632608,30937.0,30921.0,4.7815]
[1609824183382,0.13632608,30922.0,30921.0,4.91782608]
[1609824183583,0.13632608,30922.0,30921.0,0.13632608]
[1609824184383,0.13632608,30922.0,30906.0,4.0642]
[1609824185184,0.13632608,30922.0,30886.0,0.0957]
[1609824185386,0.13632608,30916.0,30913.0,0.13632608]
[1609824185587,0.13632608,30916.0,30883.0,2.10088534]
[1609824185788,4.50002608,30916.0,30893.0,4.618]
[1609824185988,4.3637,30916.0,30893.0,4.77117]
[1609824187592,4.3637,30916.0,30901.0,0.13632608]
[1609824188193,4.3637,30916.0,30893.0,4.77117]
[1609824188692,4.47185,30916.0,30893.0,4.77117]
[1609824189494,0.13632608,30894.0,30893.0,0.15317]
[1609824189695,0.13632608,30894.0,30886.0,0.13632608]
[1609824191399,0.13632608,30887.0,30886.0,0.13632608]
[1609824194602,5.32482608,30887.0,30886.0,0.13632608]
[1609824195705,0.13632608,30887.0,30886.0,0.13632608]
[1609824198908,0.23322608,30887.0,30886.0,0.13632608]
[1609824199107,0.13632608,30887.0,30886.0,0.13632608]
[1609824199809,4.0859,30898.0,30886.0,0.13632608]
[1609824200010,0.10223,30899.0,30886.0,0.13632608]
[1609824200208,0.48573697,30903.0,30886.0,0.13632608]
[1609824201309,0.48573697,30903.0,30887.0,0.0965]
[1609824201511,0.10815,30916.0,30884.0,3.7519]
[1609824201710,4.9239,30921.0,30884.0,3.7519]
[1609824201910,0.13632608,30910.0,30904.0,0.13632608]
[1609824202808,0.82702608,30910.0,30904.0,0.13632608]
[1609824203010,0.82702608,30910.0,30884.0,3.7519]
[1609824203211,0.13632608,30910.0,30881.0,0.10681]
[1609824203410,5.2614,30909.0,30881.0,0.10681]
[1609824204010,5.2614,30909.0,30894.0,0.13632608]
[1609824205010,0.11025,30917.0,30894.0,0.13632608]
[1609824205911,0.13632608,30895.0,30894.0,0.13632608]
[1609824206513,0.13632608,30895.0,30893.0,0.14138]
[1609824207915,0.13632608,30895.0,30883.0,0.13632608]
[1609824210018,0.13632608,30885.0,30883.0,0.13632608]
[1609824212318,5.2284,30884.0,30883.0,0.13632608]
[1609824212519,0.13632608,30885.0,30881.0,0.10681]
[1609824212718,5.0553,30882.0,30845.0,2.495321]
[1609824212919,0.13632608,30885.0,30879.0,0.14041]
[1609824213118,4.1403,30880.0,30879.0,0.14041]
[1609824213519,4.1403,30880.0,30840.0,2.39570755]
[1609824214122,4.1403,30880.0,30860.0,0.13632608]
[1609824214520,4.1403,30880.0,30838.0,1.72139962]
[1609824214721,4.1403,30880.0,30854.0,0.10656]
[1609824215824,0.48627095,30869.0,30854.0,0.10656]
[1609824216025,0.13632608,30856.0,30854.0,0.10656]
[1609824216223,0.13632608,30856.0,30849.0,0.13632608]
[1609824216424,5.58629608,30856.0,30839.0,0.097]
[1609824216826,0.28139608,30856.0,30839.0,0.097]
[1609824218024,0.28139608,30856.0,30843.0,0.13632608]
[1609824218224,0.14507,30856.0,30843.0,0.13632608]
[1609824218426,0.14507,30856.0,30848.0,5.3332]
[1609824218626,0.12862,30869.0,30848.0,5.45246]
[1609824220028,0.13632608,30884.0,30868.0,0.13632608]
[1609824220428,0.48623987,30871.0,30868.0,0.13632608]
[1609824220829,0.48623987,30871.0,30865.0,4.1039]
[1609824221028,0.2845,30903.0,30865.0,0.1168]
[1609824222733,4.5022,30899.0,30865.0,0.1168]
[1609824222931,5.1057,30897.0,30865.0,0.1168]
[1609824224031,0.13632608,30866.0,30865.0,0.1168]
[1609824225332,0.13632608,30866.0,30856.0,0.13632608]
[1609824225932,0.14873,30877.0,30857.0,0.528]
[1609824226134,5.1057,30897.0,30867.0,0.13632608]
[1609824226332,0.12679,30899.0,30867.0,0.29177608]
[1609824226532,0.12679,30899.0,30872.0,5.4192]
[1609824228034,0.48576237,30901.0,30883.0,0.13632608]
[1609824228035,0.13632608,30891.0,30883.0,0.13632608]
[1609824228234,0.15185,30899.0,30883.0,0.13632608]
[1609824229539,0.15185,30899.0,30882.0,0.155]
[1609824230137,0.13632608,30892.0,30891.0,0.13632608]
[1609824230738,0.13632608,30892.0,30882.0,0.155]
[1609824231338,0.13128,30906.0,30882.0,0.155]
[1609824231538,0.15912,30894.0,30882.0,0.155]
[1609824231839,0.15912,30894.0,30869.0,4.4482]
[1609824232239,0.13632608,30871.0,30870.0,0.13632608]
[1609824232439,0.13632608,30871.0,30870.0,0.00102608]
[1609824234242,0.13632608,30871.0,30867.0,0.15545]
[1609824234441,0.13632608,30871.0,30857.0,0.1056]
[1609824234644,0.13632608,30871.0,30840.0,2.11961784]
[1609824234846,0.13632608,30871.0,30835.0,2.11953443]
[1609824235043,4.175,30879.0,30835.0,2.11953443]
[1609824235243,4.175,30879.0,30835.0,2.26087443]
[1609824235745,4.175,30879.0,30837.0,2.12844717]
[1609824236245,0.13632608,30855.0,30854.0,0.13632608]
[1609824236646,0.13632608,30855.0,30836.0,0.0973]
[1609824236847,0.13632608,30855.0,30835.0,0.14134]
[1609824238150,0.13632608,30843.0,30842.0,0.13632608]
[1609824238751,0.13632608,30843.0,30835.0,0.14134]
[1609824239252,0.48628224,30868.0,30835.0,0.14134]
[1609824239451,0.48628224,30868.0,30836.0,0.0975]
[1609824239653,0.48628224,30868.0,30835.0,0.14134]
[1609824239951,0.2727,30870.0,30835.0,0.14134]
[1609824240352,0.2727,30870.0,30854.0,0.13632608]
[1609824240551,0.2727,30870.0,30854.0,0.29246608]
[1609824241356,0.2727,30870.0,30854.0,0.15614]
[1609824241554,4.0783,30859.0,30854.0,0.15614]
[1609824241953,0.2727,30870.0,30854.0,0.15614]
[1609824242156,3.9505,30855.0,30854.0,0.15614]
[1609824242356,4.08682608,30855.0,30854.0,0.15614]
[1609824242555,4.08682608,30855.0,30827.0,2.13656498]
[1609824242955,3.9505,30855.0,30827.0,2.13656498]
[1609824243356,0.14713,30858.0,30827.0,2.13656498]
[1609824243557,0.14713,30858.0,30827.0,1.48380498]
[1609824243757,5.2993,30843.0,30827.0,1.48380498]
[1609824243958,5.39832,30843.0,30827.0,1.48380498]
[1609824244357,0.13632608,30828.0,30827.0,1.48380498]
[1609824246858,5.39832,30843.0,30827.0,1.48380498]
[1609824248161,5.39832,30843.0,30827.0,1.37756498]
[1609824248561,0.13632608,30828.0,30827.0,1.37756498]
[1609824248964,3.88212608,30828.0,30827.0,1.37756498]
[1609824249163,3.88212608,30828.0,30827.0,1.01806498]
[1609824249363,3.88212608,30828.0,30827.0,0.91956498]
[1609824249564,3.88212608,30828.0,30827.0,0.63456498]
[1609824249766,3.7458,30828.0,30827.0,0.33086498]
[1609824249965,3.7458,30828.0,30827.0,0.26696498]
[1609824250164,3.7458,30828.0,30827.0,0.06826498]
[1609824250365,3.7458,30828.0,30821.0,1.21929448]
[1609824250565,0.098,30829.0,30821.0,1.20319448]
[1609824250766,4.9504,30822.0,30821.0,1.11109448]
[1609824250968,5.19706608,30822.0,30821.0,0.93309448]
[1609824251166,5.19706608,30822.0,30821.0,0.90099448]
[1609824251366,5.19706608,30822.0,30762.0,4.46736314]
[1609824251571,0.24666608,30822.0,30812.0,3.09553088]
[1609824251768,0.24666608,30822.0,30812.0,2.97253088]
[1609824252168,0.24666608,30822.0,30785.0,5.4291]
[1609824252967,0.13632608,30788.0,30785.0,5.4291]
[1609824253168,0.13632608,30788.0,30770.0,0.13632608]
[1609824253971,0.4874558,30794.0,30765.0,0.0981]
[1609824254368,0.4874558,30794.0,30787.0,0.16836525]
[1609824254569,0.11034,30822.0,30787.0,0.16836525]
[1609824254971,4.0145,30809.0,30788.0,0.13632608]
[1609824255169,0.14386,30810.0,30788.0,0.13632608]
[1609824255576,0.14386,30810.0,30775.0,4.49519532]
[1609824255770,0.14386,30810.0,30788.0,0.14473]
[1609824255969,6.09842796,30789.0,30775.0,4.04578822]
[1609824256169,6.09842796,30789.0,30788.0,0.11841]
[1609824256170,4.01632796,30789.0,30788.0,0.11841]
[1609824256369,2.60911704,30789.0,30775.0,3.76813604]
[1609824256769,1.07631784,30789.0,30775.0,3.47108193]
[1609824256970,1.07631784,30789.0,30788.0,0.13632608]
[1609824257169,1.07631784,30789.0,30788.0,0.11307]
[1609824257770,0.00831648,30787.0,30782.0,0.0977]
[1609824257970,0.00831648,30787.0,30738.0,8.5548]
[1609824257971,0.00831648,30787.0,30701.0,0.1771]
[1609824258171,0.09904635,30766.0,30726.0,0.1771]
[1609824258371,0.0967,30775.0,30734.0,0.1084496]
[1609824258570,2.26733839,30789.0,30734.0,0.2650096]
[1609824258771,0.00341068,30776.0,30734.0,0.2650096]
[1609824259572,0.00340786,30774.0,30734.0,0.2650096]
[1609824260075,0.00340786,30774.0,30734.0,0.1676096]
[1609824260475,0.01164254,30776.0,30734.0,0.1676096]
[1609824261075,0.13632608,30751.0,30750.0,0.13632608]
[1609824261476,0.13632608,30751.0,30734.0,0.1676096]
[1609824261877,4.7809,30758.0,30734.0,0.1676096]
[1609824262278,0.00337284,30764.0,30734.0,0.1676096]
[1609824262680,0.0963,30764.0,30735.0,0.0978]
[1609824263079,0.13632608,30747.0,30742.0,0.13632608]
[1609824263280,0.00336,30746.0,30742.0,0.13632608]
[1609824263478,0.00336,30746.0,30734.0,0.13632608]
[1609824263679,4.9127,30744.0,30702.0,4.8003]
[1609824263879,0.01155138,30745.0,30677.0,0.1771]
[1609824264080,5.4245,30728.0,30708.0,0.12869]
[1609824264479,0.01155138,30745.0,30708.0,0.12869]
[1609824264678,5.1511,30718.0,30708.0,0.12869]
[1609824264879,0.14239,30744.0,30708.0,0.12869]
[1609824265081,5.60132608,30709.0,30708.0,0.12869]
[1609824265282,4.09362608,30709.0,30666.0,4.7542]
[1609824265481,0.13632608,30709.0,30660.0,0.099]
[1609824265682,5.3751,30693.0,30621.0,4.7243]
[1609824266081,5.3751,30693.0,30659.0,0.0975]
[1609824266282,5.3751,30693.0,30653.0,0.0979]
[1609824266483,0.13632608,30709.0,30653.0,0.0979]
[1609824266683,0.13632608,30709.0,30680.0,0.11898395]
[1609824267083,0.01125282,30710.0,30680.0,0.11898395]
[1609824267484,0.00326895,30700.0,30680.0,0.10785]
[1609824268083,0.04297911,30702.0,30680.0,0.10785]
[1609824268484,0.0982,30705.0,30681.0,0.0975]
[1609824268686,0.32787519,30708.0,30689.0,4.1227]
[1609824268885,0.32787519,30708.0,30689.0,4.22574]
[1609824269086,0.69161435,30728.0,30707.0,0.13632608]
[1609824269284,0.55911435,30728.0,30707.0,0.24558608]
[1609824269484,0.54461435,30728.0,30707.0,0.24558608]
[1609824269685,0.40121435,30728.0,30707.0,0.24558608]
[1609824269885,0.78679683,30753.0,30708.0,0.5811]
[1609824270085,0.48863118,30719.0,30707.0,0.24558608]
[1609824270486,0.37363118,30719.0,30708.0,0.0963]
[1609824270685,0.0974,30718.0,30710.0,4.4661]
[1609824270886,0.0985,30720.0,30710.0,4.4661]
[1609824271086,0.0968,30724.0,30719.0,0.13632608]
[1609824271287,0.0712,30731.0,30719.0,0.13632608]
[1609824271586,0.13632608,30754.0,30719.0,0.13632608]
[1609824271786,0.0554,30738.0,30719.0,0.13632608]
[1609824271985,0.13632608,30754.0,30719.0,0.13632608]
[1609824272185,0.11465,30773.0,30719.0,0.13632608]
[1609824272387,0.11465,30773.0,30719.0,0.23835608]
[1609824272586,0.11465,30773.0,30721.0,4.1178]
[1609824272991,0.13632608,30740.0,30736.0,0.13632608]
[1609824273189,0.13632608,30740.0,30721.0,4.1178]
[1609824273588,0.0965,30739.0,30721.0,4.1178]
[1609824274090,0.1945,30746.0,30721.0,4.1178]
[1609824274288,0.0979,30752.0,30721.0,4.1178]
[1609824274690,0.0979,30752.0,30721.0,4.01862509]
[1609824274990,0.0979,30752.0,30720.0,0.0989]
[1609824275191,0.0987,30761.0,30726.0,3.6472]
[1609824275390,0.0359,30761.0,30727.0,0.098]
[1609824275592,0.78881826,30765.0,30726.0,3.77294]
[1609824275993,0.79010267,30768.0,30726.0,3.77294]
[1609824276192,0.0971,30767.0,30726.0,3.77294]
[1609824276391,0.79010267,30768.0,30726.0,3.77294]
[1609824276593,0.11877,30780.0,30726.0,0.12574]
[1609824276792,0.11877,30780.0,30744.0,4.0996]
[1609824276992,0.11877,30780.0,30744.0,4.23056]
[1609824277192,0.11877,30780.0,30770.0,0.13632608]
[1609824277393,0.0972,30779.0,30770.0,0.27604608]
[1609824277993,0.12017,30801.0,30770.0,0.27604608]
[1609824278394,0.0964,30800.0,30771.0,0.0961]
[1609824278796,0.12017,30801.0,30770.0,0.13972]
[1609824279194,0.13632608,30771.0,30770.0,0.13972]
[1609824279595,0.12017,30801.0,30770.0,0.13972]
[1609824279797,0.12017,30801.0,30770.0,0.23732]
[1609824280798,0.0981,30800.0,30770.0,0.23732]
[1609824281800,0.13355,30830.0,30780.0,4.9716]
[1609824281998,0.13632608,30809.0,30808.0,0.13632608]
[1609824282199,0.13632608,30809.0,30780.0,0.12957]
[1609824282399,0.39184,30837.0,30785.0,5.1741]
[1609824282900,0.0973,30836.0,30785.0,5.1741]
[1609824283099,0.0973,30836.0,30786.0,0.0974]
[1609824284000,0.13632608,30803.0,30802.0,0.13632608]
[1609824284202,0.13632608,30803.0,30787.0,0.0975]
[1609824284401,0.11204,30837.0,30785.0,5.1741]
[1609824284600,0.15498,30830.0,30785.0,5.1741]
[1609824286501,0.0958,30829.0,30786.0,0.0964]
[1609824287001,0.11204,30837.0,30785.0,5.1741]
[1609824287402,0.81950595,30874.0,30785.0,5.1741]
[1609824287602,0.81922473,30873.0,30785.0,5.1741]
[1609824288002,0.13632608,30797.0,30789.0,0.13632608]
[1609824288604,0.13632608,30797.0,30780.0,0.12957]
[1609824288803,0.13632608,30797.0,30778.0,0.0976]
[1609824289002,0.13632608,30797.0,30769.0,5.4394]
[1609824289605,0.14856,30825.0,30746.0,0.0983]
[1609824289807,0.0965,30824.0,30784.0,4.3212]
[1609824290006,0.13632608,30811.0,30798.0,0.13632608]
[1609824290407,0.14139,30837.0,30798.0,0.13632608]
[1609824290606,0.14139,30837.0,30798.0,0.24161608]
[1609824290809,0.14139,30837.0,30806.0,4.0742]
[1609824291007,0.0965,30836.0,30807.0,0.0971]
[1609824291909,0.14309,30847.0,30806.0,0.1329]
[1609824292109,0.14309,30847.0,30817.0,0.13632608]
[1609824292310,0.14309,30847.0,30817.0,0.28550608]
[1609824292509,0.14309,30847.0,30821.0,5.3928]
[1609824292710,1.44059291,30883.0,30821.0,5.3928]
[1609824292911,1.44059291,30883.0,30822.0,0.0982]
[1609824292912,0.72238155,30864.0,30822.0,0.0982]
[1609824293110,0.0958,30863.0,30822.0,0.0982]
[1609824293812,0.83264155,30864.0,30821.0,5.3928]
[1609824294014,0.13632608,30841.0,30826.0,0.13632608]
[1609824294212,0.11026,30864.0,30821.0,5.3928]
[1609824294713,0.0981,30863.0,30822.0,0.0976]
[1609824295314,0.11026,30864.0,30821.0,5.3928]
[1609824296515,0.11026,30864.0,30822.0,0.0965]
[1609824296716,0.13632608,30823.0,30822.0,0.0965]
[1609824297117,0.15195,30849.0,30822.0,0.0965]
[1609824298419,0.15195,30849.0,30817.0,0.14918]
[1609824298619,0.15195,30849.0,30815.0,4.8227]
[1609824298821,0.13632608,30833.0,30825.0,0.13632608]
[1609824299020,0.13632608,30833.0,30829.0,0.5379]
[1609824299219,0.15433,30856.0,30829.0,0.6574]
[1609824299520,0.15433,30856.0,30830.0,0.0965]
[1609824300120,0.0983,30857.0,30830.0,0.0965]
[1609824300624,0.0983,30857.0,30831.0,0.0978]
[1609824300826,0.13632608,30840.0,30838.0,0.13632608]
[1609824301432,0.15119,30850.0,30829.0,0.1195]
[1609824302834,0.13632608,30830.0,30829.0,0.1195]
[1609824303029,0.16096,30840.0,30829.0,0.1195]
[1609824303927,0.0958,30839.0,30829.0,0.1195]
[1609824304325,0.0958,30839.0,30830.0,0.098]
[1609824304726,0.0958,30839.0,30837.0,0.13632608]
[1609824305326,0.0958,30839.0,30830.0,0.098]
[1609824305526,0.0969,30838.0,30831.0,0.098]
[1609824305728,0.03596,30840.0,30828.0,4.5084]
[1609824306628,0.0973,30839.0,30829.0,0.0974]
[1609824306829,0.13632608,30841.0,30836.0,0.13632608]
[1609824307329,0.15119,30850.0,30836.0,0.13632608]
[1609824307529,0.02075545,32548.0,30836.0,0.13632608]
[1609824307729,0.64801542,30956.0,30836.0,0.13632608]
[1609824307930,0.0975,30874.0,30837.0,0.0982]
[1609824308130,0.23658,30874.0,30837.0,0.0982]
[1609824308731,0.23658,30874.0,30837.0,3.8458]
[1609824308937,0.50438121,30873.0,30837.0,3.8458]
[1609824309133,0.13632608,30850.0,30845.0,0.13632608]
[1609824309533,0.12732,30861.0,30839.0,4.389]
[1609824310235,0.0977,30860.0,30839.0,4.389]
[1609824310834,0.12732,30861.0,30839.0,4.389]
[1609824311937,0.12732,30861.0,30833.0,0.15304]
[1609824312138,0.12732,30861.0,30837.0,4.9559]
[1609824313138,0.12732,30861.0,30851.0,0.13632608]
[1609824314340,0.12732,30861.0,30833.0,0.15304]
[1609824314540,0.12491,30861.0,30832.0,5.3749]
[1609824314940,0.0957,30860.0,30832.0,5.3749]
[1609824315139,0.12491,30861.0,30832.0,5.3749]
[1609824315341,0.13632608,30847.0,30836.0,0.13632608]
[1609824316342,0.1357,30848.0,30819.0,0.0977]
[1609824316546,0.1357,30848.0,30826.0,0.10423]
[1609824316951,0.1357,30848.0,30819.0,0.12692]
[1609824317154,0.0963,30847.0,30819.0,0.12692]
[1609824317346,0.13632608,30820.0,30819.0,0.12692]
[1609824318146,0.24988608,30820.0,30819.0,0.0977]
[1609824318346,0.24988608,30820.0,30797.0,5.2108]
[1609824318946,0.24988608,30820.0,30798.0,0.0982]
[1609824319346,0.11356,30820.0,30798.0,0.0982]
[1609824319547,0.11356,30820.0,30783.0,0.1471]
[1609824319746,0.13632608,30796.0,30795.0,0.13632608]
[1609824319948,0.15344,30799.0,30783.0,0.1471]
[1609824321047,0.15344,30799.0,30774.0,0.09938]
[1609824322448,0.15344,30799.0,30779.0,0.13632608]
[1609824322648,0.15344,30799.0,30774.0,0.09938]
[1609824324050,0.15344,30799.0,30761.0,4.5938]
[1609824324265,0.15344,30799.0,27971.0,0.0154357]
[1609824324266,0.15344,30799.0,30729.0,2.09331255]
[1609824324457,4.6254,30795.0,30730.0,0.2893]
[1609824324655,0.13632608,30747.0,30743.0,0.13632608]
[1609824325052,0.15157,30770.0,30745.0,0.7719]
[1609824325263,0.15157,30770.0,30747.0,4.8248]
[1609824325858,0.2814,30794.0,30747.0,4.8248]
[1609824326663,0.13632608,30767.0,30749.0,0.13632608]
[1609824327054,0.15674,30775.0,30747.0,4.8248]
[1609824327252,0.15674,30775.0,30745.0,0.10737]
[1609824328655,0.13632608,30758.0,30754.0,0.13632608]
[1609824329055,0.13632608,30758.0,30745.0,0.10737]
[1609824330252,0.13632608,30758.0,30739.0,3.8667]
[1609824330652,0.14122,30760.0,30749.0,0.13632608]
[1609824330853,0.14122,30760.0,30748.0,0.12772]
[1609824331252,0.10722,30760.0,30748.0,0.12772]
[1609824331453,0.09522,30760.0,30748.0,0.12772]